[Event "45th FIDE Olympiad 2024"]
[Site "Budapest"]
[Date "2024.09.12"]
[Round "2.48"]
[White "Muradli, Mahammad"]
[Black "Lahdelma, Henri"]
[Result "1-0"]
[ECO "D24"]
[WhiteElo "2576"]
[BlackElo "2331"]
[Annotator "TA"]
[PlyCount "71"]
[EventDate "2024.09.05"]
[EventType "team-tourn"]
[EventCountry "HUN"]
[SourceTitle "playchess.com"]
[Source "ChessBase"]
[SourceQuality "1"]
[WhiteTeam "Azerbaijan"]
[BlackTeam "Finland"]
[WhiteTeamCountry "AZE"]
[BlackTeamCountry "FIN"]
[TimeControl "40/5400+30:1800+30"]

{[%evp 9,71,33,20,0,62,67,91,76,86,97,103,34,41,46,80,57,57,56,59,58,74,49,40,41,37,11,68,9,33,0,0,0,0,0,0,0,0,0,0,0,277,270,298,274,293,164,287,0,0,0,311,331,336,335,272,139,1012,958,29978,29979,29979,29980,29992,29993]} 1. d4 {[%emt 0:00:04]} Nf6 {[%emt 0:00:08]} 2. c4 {[%emt 0:00:10]} e6 {[%emt 0:00:09]} 3. Nf3 {[%emt 0:00:14]} d5 {[%emt 0:00:19]} 4. Nc3 {[%emt 0:00:07]} dxc4 {[%emt 0:00:19]} 5. e4 {[%emt 0:00:57]} Bb4 {[%emt 0:00:16]} 6. Bxc4 {[%emt 0:04:31]} c5 {[%emt 0:00:55]} ({Better is} 6... Nxe4 $11 7. O-O Bxc3 (7... Nxc3 8. bxc3 Bd6 9. Bb2 $11) 8. bxc3 Nxc3) 7. O-O $14 {[%emt 0:12:21]} cxd4 {[%emt 0:04:16]} 8. Nxd4 {[%emt 0:01:09] And now Qa4+ would win. White is better.} O-O {[%emt 0:07:33]} 9. e5 {[%emt 0:14:49]} Nfd7 {[%emt 0:05:42]} 10. f4 {[%emt 0:02:20]} (10. Re1 $16) 10... Nb6 {[%emt 0:05:06]} 11. Bb3 {[%emt 0:06:04]} Bc5 {[%emt 0:01:45]} 12. Be3 {[%emt 0:00:14]} Nc6 {[%emt 0:00:30] [#]} 13. Nf5 {[%emt 0:02:40][%cal Bd4f5,Bf5e3,Be3g4][%mdl 32]} Bxe3+ {[%emt 0:00:59]} 14. Nxe3 {[%emt 0:00:02]} Nd4 {[%emt 0:01:29]} 15. Qh5 {[%emt 0:07:04]} Nxb3 {[%emt 0:03:29]} 16. axb3 {[%emt 0:01:31]} Bd7 {[%emt 0:13:39]} 17. Rad1 {[%emt 0:11:23]} Qe8 {[%emt 0:05:55]} (17... Qe7 $11) 18. Qh4 {[%emt 0:07:57] White has more active pieces.} (18. Rd6 $14) 18... Bc6 $11 {[%emt 0:10:13]} 19. Ng4 {[%emt 0:15:03][%cal Og4f6] aiming for Nf6+!} Rd8 {[%emt 0:05:30]} 20. Rfe1 {[%emt 0:00:11][%cal Of4f5] Black must now prevent f5!} Rxd1 {[%emt 0:01:39]} 21. Rxd1 {[%emt 0:01:25]} Nd7 {[%emt 0:01:18] Wards off Nf6+} 22. b4 {[%emt 0:07:03]} a6 {[%emt 0:00:31]} 23. Nf6+ {[%emt 0:03:01]} gxf6 {[%emt 0:01:54]} 24. Rd3 {[%emt 0:00:02]} Bxg2 {[%emt 0:03:11][%mdl 8192]} 25. Qh6 $1 $18 {[%emt 0:01:28]} Kh8 {[%emt 0:00:29]} 26. Rxd7 {[%emt 0:00:07] Black is weak on the dark squares} Bh3 {[%emt 0:03:56][%cal Bg2h3,Bh3f5,Bf5g6][%mdl 32] Strongly threatening ...Rg8+.} 27. Qxf6+ $40 {[%emt 0:01:31][%mdl 128] White is out for blood.} (27. Rxb7 fxe5 (27... Rg8+ $2 28. Kf2 $18) 28. Qxh3 Qc6 $16) 27... Kg8 {[%emt 0:00:01]} 28. Qg5+ {[%emt 0:00:08]} ({Worse is} 28. Rxb7 Qc6 29. Qg5+ Kh8 30. Qf6+ Kg8 31. Qg5+ Kh8 32. Qf6+ Kg8 $11) 28... Kh8 {[%emt 0:00:04] ...Rg8 is the strong threat.} 29. Qf6+ {[%emt 0:00:02]} (29. Rxb7 $2 {loses.} Rg8 30. Kf2 Rxg5 $19) 29... Kg8 {[%emt 0:00:02] [#]} 30. Rd3 $1 {[%emt 0:01:16] White wants to mate with Rg3+.} ({Not} 30. Rxb7 Qc6 31. Qg5+ Kh8 $11) 30... Bf5 {[%emt 0:00:08]} 31. Rg3+ {[%emt 0:00:33]} Bg6 {[%emt 0:00:06] [#]} 32. f5 {[%emt 0:00:19]} (32. h4 $1 $18 {[%cal Rh4h5]}) 32... exf5 $2 {[%emt 0:01:07][%mdl 8192] This move loses the game for Black.} (32... Qc6 $16) 33. Nd5 $1 {[%emt 0:00:11]} h6 {[%emt 0:03:24]} 34. e6 {[%emt 0:00:09][%cal Be5e6,Be6e7,Be7f8][%mdl 32] White mates.} Kh7 {[%emt 0:03:33]} 35. e7 {[%emt 0:00:40]} f4 {[%emt 0:00:55]} 36. exf8=N+ {[%emt 0:00:22] Weighted Error Value: White=0.36/Black=0.52.  Loses game:     	---       	Black=4      Mistake:       	White=3     	Black=2      Inaccurate:     	White=2     	Black=3      OK:         	White=8     	Black=7      Best:        	White=2     	Black=6      Strong:       	White=3     	---} 1-0

[Event "45th FIDE Olympiad 2024"]
[Site "Budapest"]
[Date "2024.09.12"]
[Round "2.49"]
[White "Shirov, Alexei"]
[Black "Maksimovic, Bojan"]
[Result "1-0"]
[ECO "E90"]
[WhiteElo "2666"]
[BlackElo "2503"]
[Annotator "TA"]
[PlyCount "70"]
[EventDate "2024.09.05"]
[EventType "team-tourn"]
[EventCountry "HUN"]
[SourceTitle "playchess.com"]
[Source "ChessBase"]
[SourceQuality "1"]
[WhiteTeam "Spain"]
[BlackTeam "Bosnia & Herzegovina"]
[WhiteTeamCountry "ESP"]
[BlackTeamCountry "BIH"]
[TimeControl "40/5400+30:1800+30"]

{[%evp 10,70,37,24,37,26,37,41,54,49,58,54,69,-5,7,14,6,12,7,0,26,3,31,30,33,35,21,29,26,29,34,37,147,75,85,44,46,58,55,55,53,37,31,35,291,309,327,277,267,304,312,322,322,306,302,289,298,298,287,337,331,339,564]} 1. d4 {[%emt 0:00:02]} Nf6 {[%emt 0:00:22]} 2. c4 {[%emt 0:00:08]} g6 {[%emt 0:00:35]} 3. Nc3 {[%emt 0:00:22]} Bg7 {[%emt 0:00:27]} 4. e4 {[%emt 0:00:06]} d6 {[%emt 0:00:05]} 5. h3 {[%emt 0:00:04]} Nbd7 {[%emt 0:04:52]} 6. Nf3 {[%emt 0:18:40]} e5 {[%emt 0:02:50]} 7. d5 {[%emt 0:01:39]} Nc5 {[%emt 0:08:29]} 8. Qc2 {[%emt 0:00:34]} Nh5 {[%emt 0:00:48] White is slightly better.} 9. b4 {[%emt 0:15:54]} Nd7 {[%emt 0:00:09] [#]} 10. c5 $1 {[%emt 0:00:09]} O-O {[%emt 0:09:45]} 11. c6 {[%emt 0:02:34]} (11. Be3 $14) 11... bxc6 $11 {[%emt 0:07:32]} 12. dxc6 {[%emt 0:03:29]} Nb6 {[%emt 0:02:02]} 13. a4 {[%emt 0:01:25] And now a5 would win.} a5 $1 {[%emt 0:06:09]} 14. bxa5 {[%emt 0:02:57]} Rxa5 {[%emt 0:00:09]} 15. Bg5 {[%emt 0:00:28]} Bf6 {[%emt 0:03:24]} 16. Be3 {[%emt 0:01:49]} d5 {[%emt 0:08:14] [#] Threatens to win with ...d4.} 17. Bxb6 {[%emt 0:03:27]} cxb6 {[%emt 0:00:44]} 18. Bb5 $1 {[%emt 0:00:55]} (18. exd5 $2 e4 19. Nd2 e3 $19) (18. Nxd5 $2 Rxd5 19. exd5 e4 $19) 18... Nf4 {[%emt 0:06:36]} 19. g3 {[%emt 0:05:21]} dxe4 $1 {[%emt 0:01:43]} 20. Nxe4 {[%emt 0:00:58]} Nxh3 {[%emt 0:02:44]} (20... Ne6 $1 $14) 21. Rd1 {[%emt 0:24:39]} ({White should try} 21. c7 Qe7 22. Qc6) 21... Qe7 $16 {[%emt 0:00:08]} 22. Kf1 {[%emt 0:00:37]} Ng5 {[%emt 0:06:27]} 23. Nfxg5 {[%emt 0:01:30]} Bxg5 {[%emt 0:00:06]} 24. Kg2 {[%emt 0:00:10]} Bf5 {[%emt 0:07:31]} 25. Qe2 $36 {[%emt 0:03:07][%mdl 2048] Black is under pressure.} Ra7 {[%emt 0:02:58]} 26. Rhe1 {[%emt 0:03:14]} h5 $2 {[%emt 0:05:09][%mdl 8192] This move loses the game for Black.} (26... Bf6 $14) 27. Nxg5 $18 {[%emt 0:02:54] White has a decisive advantage.} Qxg5 {[%emt 0:00:05]} 28. Qxe5 {[%emt 0:00:06]} h4 {[%emt 0:01:40]} 29. c7 {[%emt 0:05:51]} hxg3 {[%emt 0:06:01]} 30. fxg3 {[%emt 0:00:41] Kg1 is the strong threat.} Raa8 {[%emt 0:05:54]} 31. Rd4 {[%emt 0:01:19]} Qh6 {[%emt 0:00:08]} 32. Rh1 {[%emt 0:00:34] Active counter play!} Qg7 {[%emt 0:00:05]} 33. Qd6 {[%emt 0:00:29]} Rac8 {[%emt 0:00:14]} 34. Rdh4 {[%emt 0:00:33] Against Rxc7. Hoping for Rh8+.} (34. Qxb6 Rxc7 35. Qd6 Rc2+ 36. Kg1 Be6 $15) 34... Qb2+ {[%emt 0:00:51]} 35. Kf3 {[%emt 0:00:10]} Qc3+ $2 {[%emt 0:02:31] Weighted Error Value: White=0.10 (very precise) /Black=0.19 (very precise) .  Loses game:     	---       	Black=1      Mistake:       	White=2     	Black=2      Inaccurate:     	White=1     	Black=2      OK:         	White=18    	Black=15     Best:        	White=2     	Black=1      Strong:       	White=1     	Black=2      Brilliant:      	White=1     	---} (35... Be6 36. g4 (36. Qxb6 Bd5+ 37. Kf4 g5+ 38. Kg4 gxh4 $19) (36. Rh8+ Kg7 $16) 36... Qb3+ (36... Qc3+ $2 37. Bd3 $18) 37. Kf2 (37. Kf4 g5+ 38. Kxg5 Qe3+ 39. Kf6 Qc3+ 40. Kg5 Qe3+ 41. Kf6 Qc3+ 42. Qe5 Qf3+ $11) 37... Qd5 38. Rh8+ (38. Qxb6 Qd2+ 39. Be2 Rfe8 $18) 38... Kg7 39. Qxd5 (39. Qxb6 $2 Rxh8 $19) 39... Bxd5 40. Rxf8 Rxf8) 1-0

[Event "45th FIDE Olympiad 2024"]
[Site "Budapest"]
[Date "2024.09.12"]
[Round "2.49"]
[White "Mehrad, Ahmad Tamim"]
[Black "Kudakwashe, Chinake"]
[Result "1-0"]
[ECO "B12"]
[WhiteElo "2015"]
[BlackElo "1859"]
[Annotator "NA"]
[PlyCount "77"]
[EventDate "2024.09.05"]
[EventType "team-tourn"]
[EventCountry "HUN"]
[SourceTitle "playchess.com"]
[Source "ChessBase"]
[SourceQuality "1"]
[WhiteTeam "Afghanistan"]
[BlackTeam "Cayman Islands"]
[WhiteTeamCountry "AFG"]
[BlackTeamCountry "CAY"]
[TimeControl "40/5400+30:1800+30"]

1. e4 c6 2. d4 d5 3. e5 Bf5 4. Ne2 e6 5. Ng3 Bg6 6. h4 f6 7. h5 Bf7 8. exf6 Nxf6 9. h6 g6 10. Bg5 Nbd7 11. Nd2 Qb6 12. Nb3 a5 13. a4 Be7 14. Bd3 Bb4+ 15. c3 Bd6 16. O-O O-O 17. Qc2 e5 18. dxe5 Bxe5 19. Ne2 Ng4 20. Nbd4 c5 21. Bb5 Ndf6 22. Nf3 Bc7 23. Bxf6 Qxf6 24. Qd2 Be6 25. Ng5 Rad8 26. f3 Qe5 27. f4 Qf6 28. Rae1 Nxh6 29. Nxe6 Qxe6 30. Nd4 Qb6 31. Ne6 c4+ 32. Kh1 Rf5 33. g4 Nxg4 34. Qd4 Rh5+ 35. Kg2 Rd7 36. Qxb6 Bxb6 37. Bxd7 Rh2+ 38. Kg3 h5 39. Nd4 1-0

[Event "45th FIDE Olympiad 2024"]
[Site "Budapest"]
[Date "2024.09.12"]
[Round "2.50"]
[White "Burovic, Rijad"]
[Black "Anton Guijarro, David"]
[Result "0-1"]
[ECO "B12"]
[WhiteElo "2426"]
[BlackElo "2665"]
[Annotator "TA"]
[PlyCount "70"]
[EventDate "2024.09.05"]
[EventType "team-tourn"]
[EventCountry "HUN"]
[SourceTitle "playchess.com"]
[Source "ChessBase"]
[SourceQuality "1"]
[WhiteTeam "Bosnia & Herzegovina"]
[BlackTeam "Spain"]
[WhiteTeamCountry "BIH"]
[BlackTeamCountry "ESP"]
[TimeControl "40/5400+30:1800+30"]

{[%evp 10,70,32,22,23,2,8,8,12,5,14,3,9,0,15,12,19,43,27,47,48,54,42,53,54,25,64,60,43,51,51,45,73,43,77,39,44,39,53,1,0,0,0,0,0,0,0,0,0,0,0,0,0,0,0,0,235,0,0,0,-25,-5410,-5314]} 1. e4 {[%emt 0:00:10]} c6 {[%emt 0:00:17]} 2. d4 {[%emt 0:00:30]} d5 {[%emt 0:00:09]} 3. e5 {[%emt 0:00:14]} Bf5 {[%emt 0:00:22]} 4. h4 {[%emt 0:00:18]} h6 {[%emt 0:00:39]} 5. g4 {[%emt 0:00:47]} Be4 {[%emt 0:00:14]} 6. f3 $1 {[%emt 0:00:05]} Bh7 {[%emt 0:00:07]} 7. Bd3 {[%emt 0:00:08]} Bxd3 {[%emt 0:00:18]} 8. Qxd3 {[%emt 0:00:04][%cal Oe5e6]} e6 {[%emt 0:00:08] The position is equal.} 9. h5 {[%emt 0:00:05]} c5 {[%emt 0:00:28]} 10. c3 {[%emt 0:00:04]} Nc6 {[%emt 0:00:07]} 11. Ne2 {[%emt 0:02:12]} Nge7 {[%emt 0:00:30]} 12. f4 {[%emt 0:10:51]} f5 {[%emt 0:00:37]} 13. exf6 {[%emt 0:11:47]} gxf6 {[%emt 0:00:15]} 14. dxc5 {[%emt 0:00:34]} Rg8 {[%emt 0:01:32]} 15. Rg1 {[%emt 0:03:13]} Qd7 {[%emt 0:07:15]} 16. Na3 {[%emt 0:06:14][%cal Bb1a3,Ba3b5,Bb5d6][%mdl 32]} e5 {[%emt 0:26:52]} 17. Nb5 {[%emt 0:15:17] [#] Strongly threatening Nd6+.} O-O-O $1 {[%emt 0:01:20]} 18. Nd6+ {[%emt 0:08:51]} Kb8 {[%emt 0:00:16]} 19. f5 {[%emt 0:00:43]} Nc8 {[%emt 0:04:20]} 20. Qxd5 {[%emt 0:01:59]} Bxd6 {[%emt 0:01:31]} 21. cxd6 {[%emt 0:00:16]} Qg7 {[%emt 0:02:54]} (21... Nb6 $2 22. Qc5 $18) 22. Bd2 {[%emt 0:10:18]} (22. Be3 Nxd6 23. Qf3 Nf7 $11 (23... Nc4 24. b3 $14)) 22... Nxd6 {[%emt 0:04:10]} 23. O-O-O {[%emt 0:01:26]} Nxf5 $1 {[%emt 0:01:56]} 24. Qc5 {[%emt 0:05:34]} (24. Qf3 $14 Nfe7 25. Rdf1) 24... Nd6 {[%emt 0:04:54]} 25. Be3 {[%emt 0:01:35]} Ne4 {[%emt 0:02:51]} 26. Qc4 {[%emt 0:02:14]} Qh7 $1 {[%emt 0:04:12]} (26... Rxd1+ 27. Rxd1 Qh7 (27... Qxg4 $2 28. Rg1 $18) 28. Qe6 $14 (28. Rd7 Qxd7 29. Qxg8+ Kc7 $11)) 27. Rxd8+ {[%emt 0:10:13]} Rxd8 {[%emt 0:00:10]} 28. Ng3 {[%emt 0:02:48]} Nxg3 {[%emt 0:11:03]} 29. Rxg3 {[%emt 0:00:06]} f5 $1 {[%emt 0:05:10]} 30. gxf5 {[%emt 0:00:44]} Qxf5 {[%emt 0:00:08][%cal Oc6d4] aiming for ...Nd4!} 31. Qe2 {[%emt 0:02:02]} (31. Bxh6 $2 Qxh5 32. Kb1 (32. Bd2 $2 Qh1+ 33. Kc2 Rxd2+ 34. Kxd2 Qh2+ 35. Qe2 Qxg3 $19) 32... Qxh6 $19) 31... Nd4 $1 $40 {[%emt 0:13:03][%mdl 128] Black mounts an attack.} 32. Qg2 {[%emt 0:04:34]} (32. cxd4 $2 Rc8+ 33. Kd2 (33. Kd1 Qb1+ 34. Kd2 Rc2+ 35. Kd3 Rc1+ 36. Kd2 Qc2#) 33... Rc2+ 34. Ke1 Rxe2+ 35. Kxe2 Qxh5+ 36. Kf2 b6 37. dxe5 Qxe5 $19) 32... Nc2 $2 {[%emt 0:06:28] [#]} 33. Rg8 $2 {[%emt 0:00:31]} (33. Qxc2 $2 Qf1+) (33. Bxh6 $2 Ne1 (33... Qxh5 $2 34. Bd2 $18) 34. Qe2 Nd3+ 35. Rxd3 Rxd3 $19) (33. Rg7 $2 Rd1+ (33... Nxe3 34. Qxb7#) 34. Kxd1 Nxe3+ 35. Kd2 Nxg2 $19) (33. Bd2 $1 $18 Na1 34. Bxh6 Qxh5 35. Bd2) 33... Nxe3 $11 {[%emt 0:00:28]} 34. Rxd8+ {[%emt 0:00:06]} Kc7 {[%emt 0:00:05]} 35. Qd2 {[%emt 0:00:55][%mdl 8192]} (35. Qe2 $11 Kxd8 36. Qxe3 Qxh5 37. Qd3+ (37. Qxa7 Qh1+ 38. Kd2 Kd7 $11) 37... Ke7 38. Qh7+ Kf6 (38... Qf7 39. Qxh6 Qd5 40. Qh4+ Ke6 41. Qh6+ Kd7 42. Qh7+ Kc6 43. Qg6+ Kc7 44. Qg7+ Kb8 45. Qf8+ Kc7 46. Qe7+ Kb6 47. Qf6+ Kc7 48. Kc2 $11) 39. Qxb7) 35... Qf1+ {[%emt 0:00:12] Weighted Error Value: White=0.28 (precise) /Black=0.13 (very precise) .  Loses game:     	White=1     	Black=1      Missed win:     	White=1     	---        Mistake:       	White=1     	---        Inaccurate:     	White=2     	---        OK:         	White=12    	Black=10     Best:        	White=5     	Black=5      Strong:       	---       	Black=5} ({Weaker is} 35... Qxh5 36. Qd6#) 0-1

[Event "45th FIDE Olympiad 2024"]
[Site "Budapest"]
[Date "2024.09.12"]
[Round "2.50"]
[White "Young, Christopher"]
[Black "Haidary, Hameedullah"]
[Result "0-1"]
[ECO "E77"]
[WhiteElo "1758"]
[BlackElo "2192"]
[Annotator "ChessBase"]
[PlyCount "82"]
[EventDate "2024.09.05"]
[EventType "team-tourn"]
[EventCountry "HUN"]
[SourceTitle "playchess.com"]
[Source "ChessBase"]
[SourceQuality "1"]
[WhiteTeam "Cayman Islands"]
[BlackTeam "Afghanistan"]
[WhiteTeamCountry "CAY"]
[BlackTeamCountry "AFG"]
[TimeControl "40/5400+30:1800+30"]

1. d4 Nf6 2. c4 g6 3. Nc3 Bg7 4. e4 d6 5. f4 O-O 6. Nf3 c5 7. d5 e6 8. Be2 exd5 9. e5 dxe5 10. fxe5 Ng4 11. Bg5 Qa5 12. cxd5 Nxe5 13. O-O Nbd7 14. d6 f6 15. Bf4 c4 16. Bxe5 fxe5 17. Bxc4+ Kh8 18. Qd5 Qb6+ 19. Kh1 Nf6 20. Qb5 Qxd6 21. Rad1 Qc7 22. Nd5 Nxd5 23. Bxd5 Bg4 24. h3 Bxf3 25. Bxf3 Rf7 26. Bd5 Re7 27. b3 e4 28. Rc1 Qe5 29. Qc4 e3 30. Bf3 Rd8 31. Rfe1 h5 32. Rc2 Bf6 33. Rce2 Bg5 34. Qb4 Rd4 35. Qa3 a6 36. Qb2 Kh7 37. Rc1 Qd6 38. Qc2 Kh6 39. Kg1 Bf4 40. Qc3 h4 41. Qc2 Rc7 0-1

[Event "45th FIDE Olympiad 2024"]
[Site "Budapest"]
[Date "2024.09.12"]
[Round "2.51"]
[White "Pichot, Alan"]
[Black "Culum, Sanjin"]
[Result "1-0"]
[ECO "B51"]
[WhiteElo "2628"]
[BlackElo "2409"]
[Annotator "TA"]
[PlyCount "137"]
[EventDate "2024.09.05"]
[EventType "team-tourn"]
[EventCountry "HUN"]
[SourceTitle "playchess.com"]
[Source "ChessBase"]
[SourceQuality "1"]
[WhiteTeam "Spain"]
[BlackTeam "Bosnia & Herzegovina"]
[WhiteTeamCountry "ESP"]
[BlackTeamCountry "BIH"]
[TimeControl "40/5400+30:1800+30"]

{[%evp 9,137,18,12,9,37,10,27,32,62,58,67,53,65,52,70,44,41,37,38,16,51,52,69,46,51,58,56,59,46,39,67,51,59,15,151,155,144,137,145,120,146,119,150,72,70,76,104,12,7,17,6,0,0,0,0,-93,-35,-101,-45,-119,-99,-101,-98,-104,-94,-110,0,0,0,0,0,0,8,0,0,0,0,0,0,0,0,0,0,0,94,94,94,94,404,404,404,404,484,484,683,683,668,656,652,639,625,614,595,592,29970,29971,29971,29972,29972,29973,29973,29974,29974,29975,29977,29978,29977,29975,29978,29979,29979,29980,29980,29981,29980,29982,29984,29985,29985,29985]} 1. e4 {[%emt 0:00:05]} c5 {[%emt 0:00:16]} 2. Nf3 {[%emt 0:00:05]} d6 {[%emt 0:00:16]} 3. Bb5+ {[%emt 0:00:07]} Nd7 {[%emt 0:00:37]} 4. O-O {[%emt 0:00:10]} a6 {[%emt 0:00:51]} 5. Be2 {[%emt 0:00:10]} Ngf6 {[%emt 0:02:20]} 6. d3 {[%emt 0:00:11]} g6 {[%emt 0:04:42]} 7. c4 {[%emt 0:00:13]} Bg7 {[%emt 0:00:44]} 8. Nc3 {[%emt 0:00:08] White has an edge.} Ne5 {[%emt 0:12:58]} 9. Nxe5 {[%emt 0:02:01]} dxe5 {[%emt 0:01:35]} 10. Be3 {[%emt 0:00:06]} Nd7 {[%emt 0:01:34]} 11. Rb1 {[%emt 0:02:48]} O-O {[%emt 0:07:46]} 12. b4 {[%emt 0:02:10]} cxb4 $1 {[%emt 0:01:17]} 13. Rxb4 {[%emt 0:01:29]} e6 {[%emt 0:07:36]} 14. Na4 {[%emt 0:02:50]} Qa5 {[%emt 0:14:46]} 15. Bd2 {[%emt 0:21:13][%cal Ob4b6] Threatens to win with Rb6!} Qc7 {[%emt 0:01:11][%cal Ob7b5] [#]} (15... b5 $2 16. Rxb5 axb5 17. Bxa5 $18) 16. c5 $1 {[%emt 0:06:50]} Nb8 {[%emt 0:03:48]} (16... Nxc5 17. Qc1 a5 18. Rb2 $18 (18. Qxc5 $2 Qxc5 19. Nxc5 axb4 $19)) (16... Ra7 17. Be3) 17. Nb6 {[%emt 0:01:54]} Ra7 {[%emt 0:00:09]} 18. Be3 $36 {[%emt 0:02:03][%mdl 2048] White has some pressure.} Nc6 {[%emt 0:00:19]} 19. Rc4 {[%emt 0:01:48]} Rd8 {[%emt 0:06:18]} 20. Qd2 {[%emt 0:00:35]} Nd4 {[%emt 0:02:32]} 21. f4 {[%emt 0:16:47]} Bd7 {[%emt 0:17:05]} (21... exf4 $11 {remains equal.} 22. Bxf4 (22. Rxf4 e5 $11) 22... e5) 22. fxe5 $16 {[%emt 0:02:41]} Nxe2+ {[%emt 0:01:30]} 23. Qxe2 {[%emt 0:00:06] Black is weak on the dark squares} Bb5 {[%emt 0:02:06] [#]} 24. d4 {[%emt 0:02:17]} a5 {[%emt 0:00:31]} (24... Bxc4 25. Qxc4) 25. Qf3 {[%emt 0:04:38]} Ra6 {[%emt 0:01:42][%cal Oa6b6] [#]} 26. Rcc1 {[%emt 0:09:53]} Bxf1 {[%emt 0:00:06]} 27. Rxf1 {[%emt 0:00:04]} (27. Kxf1 Rxd4 (27... Rxb6 28. cxb6 Qxb6 29. g3 $11) 28. Bxd4 Rxb6 $17 (28... Bxe5 $2 29. Be3 $18)) 27... Rf8 {[%emt 0:01:06]} 28. d5 {[%emt 0:03:54] White has more active pieces.} (28. Rb1 $16) 28... Bxe5 $11 {[%emt 0:05:18]} 29. d6 {[%emt 0:00:24]} Qc6 {[%emt 0:00:35][%cal Oa6b6]} 30. Nc4 {[%emt 0:01:19]} Bg7 {[%emt 0:00:07]} 31. e5 {[%emt 0:00:13] Hoping for Qxc6.} Qd5 {[%emt 0:02:03]} 32. Nb6 {[%emt 0:04:01] [#]} (32. Qg4 $11) 32... Rxb6 {[%emt 0:00:36]} (32... Qxa2 $2 33. Nd7 (33. Qxb7 Qe2 $16) 33... Raa8 34. Nxf8 (34. Qxb7 Qe2 $18) 34... Rxf8 35. Bg5 (35. Qxb7 Bxe5 36. d7 Qa3 $18) 35... Bxe5 36. Be7 $18 (36. Qxb7 Qc4 $11) (36. d7 Qd5 $18)) (32... Qxf3 $1 $17 33. gxf3 Rxb6 34. cxb6 Bxe5) 33. cxb6 {[%emt 0:00:33]} (33. Qxd5 $15 exd5 34. cxb6 Bxe5 35. Rd1) 33... Bxe5 {[%emt 0:00:42]} ({Black should play} 33... Qxf3 $1 $17 34. Rxf3 (34. gxf3 Bxe5 35. d7 Rd8 $15) 34... Bxe5) 34. Rd1 {[%emt 0:00:36]} (34. Qxd5 $15 exd5 35. Rd1) 34... Qxf3 $17 {[%emt 0:00:58]} 35. gxf3 {[%emt 0:00:05][%cal Bg2f3,Bf3f4][%mdl 4128] Endgame. KRB-KRB} Rd8 {[%emt 0:00:30]} 36. d7 {[%emt 0:00:10]} f6 {[%emt 0:00:04]} 37. f4 {[%emt 0:01:42]} Bb8 {[%emt 0:00:31]} (37... Bb2 $1 $17 {Strongly threatening ...Kf7.} 38. Kf2 Kf7) 38. Rc1 $1 $11 {[%emt 0:00:35]} Kf7 $1 {[%emt 0:00:24]} 39. Rc7 {[%emt 0:00:13][%cal Oe3c5] And now Bc5! would win.} e5 $1 {[%emt 0:01:45]} 40. Rxb7 {[%emt 0:09:29]} (40. fxe5 $5 Ke6 $8 41. Rxb7 Bxe5 42. Ra7 $11) 40... Ke6 {[%emt 0:00:21]} 41. fxe5 {[%emt 0:30:54]} Bxe5 {[%emt 0:04:09]} 42. Ra7 {[%emt 0:00:00]} Rxd7 {[%emt 0:00:10]} 43. Rxa5 {[%emt 0:00:00]} Rd1+ {[%emt 0:01:39]} 44. Kg2 {[%emt 0:00:00]} Rb1 {[%emt 0:00:07]} 45. a4 {[%emt 0:00:00][%cal Ba2a4,Ba4a5,Ba5a6][%mdl 32]} Rb3 {[%emt 0:04:30]} 46. Kf2 {[%emt 0:00:00]} f5 {[%emt 0:01:48] [#]} (46... Rb2+ $11 47. Kf1 h5) 47. Rxe5+ $1 $16 {[%emt 0:00:00]} Kxe5 {[%emt 0:00:13] KR-KB} 48. a5 {[%emt 0:00:00]} f4 $2 {[%emt 0:02:31][%mdl 8192] A mistake that costs the game.} (48... Kd5 $16 49. a6 Kc6 (49... f4 $2 50. a7 $18)) 49. Bc5 $18 {[%emt 0:00:00]} Kd5 {[%emt 0:01:05] [#]} 50. a6 $1 {[%emt 0:00:00]} Kc6 {[%emt 0:07:41][%cal Ob3b6] [#] ...Rxb6! is the strong threat.} (50... Kxc5 51. a7 $18) (50... Rb2+ 51. Kf3) 51. b7 {[%emt 0:00:00] aiming for Bd4.} (51. Bd4 $2 Rxb6 52. a7 Ra6 $19) 51... g5 {[%emt 0:07:24] [#]} ({Much weaker is} 51... Kxc5 52. a7 Rxb7 (52... Rb2+ $2 53. Kf3 $18) 53. a8=Q (53. a8=B $2 {perishes.} Rb8 $19) 53... Rb2+ 54. Kg1) (51... Kc7 $142 52. Bd6+ Kxd6) 52. Bd6 $1 {[%emt 0:00:00][%mdl 512]} Rb2+ {[%emt 0:00:07]} 53. Kf1 {[%emt 0:00:00]} Rb1+ {[%emt 0:00:31]} 54. Ke2 {[%emt 0:00:00]} Rb2+ {[%emt 0:00:03]} 55. Kd3 {[%emt 0:00:00]} Rb3+ {[%emt 0:04:20]} 56. Kc4 {[%emt 0:00:49]} Rxb7 {[%emt 0:02:03]} 57. axb7 {[%emt 0:00:07] White mates.} Kxb7 {[%emt 0:00:02] KB-K3P} 58. Kd5 {[%emt 0:00:31]} Kc8 {[%emt 0:00:29]} 59. Ke6 {[%emt 0:02:00]} h6 {[%emt 0:00:48]} 60. Kf5 {[%emt 0:02:06]} Kd7 {[%emt 0:00:07]} 61. Bb8 {[%emt 0:00:23]} Ke7 {[%emt 0:00:22]} 62. Kg6 {[%emt 0:01:37]} Ke6 {[%emt 0:00:05]} 63. Bc7 {[%emt 0:01:43]} Ke7 {[%emt 0:00:42]} 64. Kxh6 {[%emt 0:01:11]} Kf6 {[%emt 0:00:05]} 65. Kh5 {[%emt 0:00:10]} Kf5 {[%emt 0:01:34]} 66. h3 {[%emt 0:00:10]} f3 {[%emt 0:00:48]} 67. Bg3 {[%emt 0:00:15]} f2 {[%emt 0:00:30]} 68. Bxf2 {[%emt 0:00:05]} Kf4 {[%emt 0:00:02]} 69. Be1 {[%emt 0:00:12] Weighted Error Value: White=0.15 (very precise) /Black=0.39.  Loses game:     	---       	Black=1      Mistake:       	White=5     	Black=6      Inaccurate:     	White=2     	Black=5      OK:         	White=15    	Black=17     Best:        	White=4     	Black=1      Strong:       	White=2     	Black=3      Brilliant:      	White=2     	---} 1-0